Posting Date,Expenditure Area,Supplier Name,Net Amount,Expense Type,Reason for Expense
03-Jun-19,Corporate Management Team,Premier Inn44524125,611.25,Conference/Seminar Expenses,Accommodation at LGA Conference
07-Jun-19,Culture & Environment Services,Absolute,1056.49,Equipment / Furniture / Materials,Table clothes
18-Jun-19,Culture & Environment Services,Absolute Home Textiles,432,Equipment / Furniture / Materials,replacement table clothes
10-Jun-19,Culture & Environment Services,Amazon.Co.Uk,11.39,Direct Transport Costs,4x memory stick
05-Jun-19,Culture & Environment Services,Amzn Mktp Uk,98.32,Direct Transport Costs,1x Samsung tablet
26-Jun-19,Culture & Environment Services,Amznmktplace,26.66,Materials and Supplies - Miscellaneous,Fan for the office - Christchurch Hub
28-Jun-19,Culture & Environment Services,Amznmktplace,64.99,Equipment / Furniture / Materials,Flip chart and stand
06-Jun-19,Culture & Environment Services,Amznmktplace,8.49,Stationery,Stationery for Chris Taylor
06-Jun-19,Culture & Environment Services,Amznmktplace,286.99,Stationery,TV for Gipping House
06-Jun-19,Culture & Environment Services,Amznmktplace,10.82,Equipment / Furniture / Materials,TV stand for Gipping House
13-Jun-19,Culture & Environment Services,Amznmktplace Amazon.Co.Uk,166.66,Direct Transport Costs,1x Samsung tablet
05-Jun-19,Culture & Environment Services,Amznmktplace Amazon.Co.Uk,10.97,Direct Transport Costs,1x tablet cover
06-Jun-19,Culture & Environment Services,Amznmktplace Amazon.Co.Uk,18.72,Direct Transport Costs,2x phone cases
26-Jun-19,Culture & Environment Services,Amznmktplace Amazon.Co.Uk,4.98,Equipment / Furniture / Materials,Christmas Parties
26-Jun-19,Culture & Environment Services,Amznmktplace Amazon.Co.Uk,6.99,Equipment / Furniture / Materials,Christmas parties
26-Jun-19,Culture & Environment Services,Amznmktplace Amazon.Co.Uk,8.77,Equipment / Furniture / Materials,Christmas Parties
26-Jun-19,Culture & Environment Services,Amznmktplace Amazon.Co.Uk,11.89,Equipment / Furniture / Materials,Christmas Parties
27-Jun-19,Culture & Environment Services,Amznmktplace Amazon.Co.Uk,5.82,Equipment / Furniture / Materials,Christmas Parties
27-Jun-19,Culture & Environment Services,Amznmktplace Amazon.Co.Uk,14.19,Equipment / Furniture / Materials,Christmas Parties
27-Jun-19,Culture & Environment Services,Amznmktplace Amazon.Co.Uk,0.9,Equipment / Furniture / Materials,Christmas parties
27-Jun-19,Culture & Environment Services,Amznmktplace Amazon.Co.Uk,6.62,Equipment / Furniture / Materials,Christmas Parties
27-Jun-19,Culture & Environment Services,Amznmktplace Amazon.Co.Uk,7.75,Equipment / Furniture / Materials,Christmas Parties
27-Jun-19,Culture & Environment Services,Amznmktplace Amazon.Co.Uk,13.25,Equipment / Furniture / Materials,Christmas Parties
27-Jun-19,Culture & Environment Services,Amznmktplace Amazon.Co.Uk,44.96,Equipment / Furniture / Materials,Christmas parties
27-Jun-19,Culture & Environment Services,Amznmktplace Amazon.Co.Uk,37.22,Equipment / Furniture / Materials,Christmas parties
18-Jun-19,Culture & Environment Services,Amznmktplace Amazon.Co.Uk,14.16,Equipment / Furniture / Materials,Replacement Office Clock
11-Jun-19,Culture & Environment Services,Anglia Tool Centre,100.22,Miscellaneous Stock  - Purchases,Line Laser - Landscape Team
25-Jun-19,Culture & Environment Services,Anglia Tool Centre,86.12,Miscellaneous Stock  - Purchases,Shovel/chisel/spade - Landscape team
25-Jun-19,Culture & Environment Services,Applegreen Ipswich,54.6,Parks Vehicle Costs,Diesel - Landscape Team
10-Jun-19,Culture & Environment Services,Applegreen Ipswich,78.05,Direct Transport Costs,Fuel for vehicle - Landscape Team
28-Jun-19,Culture & Environment Services,Aquajet Cleaning Equipmen,20,Cleaning Supplies,floor pads for cari hodkinson
24-Jun-19,Culture & Environment Services,Aquarius Solutions,426,Equipment - Repairs,Bubblegum remover for cleansing team
04-Jun-19,Culture & Environment Services,Argos Ltd,35.82,Equipment / Furniture / Materials,fan
14-Jun-19,Culture & Environment Services,Asda Petrol 4278,66.67,Direct Transport Costs,diesel fuel for GV12 SWJ
03-Jun-19,Culture & Environment Services,Asda Stores 4278,39.8,Catering/Beverages,Catering Meeting
11-Jun-19,Culture & Environment Services,Asda Stores 4278,10.25,Catering/Beverages,"lemons, limes and Milk"
14-Jun-19,Culture & Environment Services,B & M Retail,7.47,Equipment / Furniture / Materials,Crown Pools front window display
25-Jun-19,Culture & Environment Services,B & M Retail,2.18,Catering/Beverages,Milk for 50+ and Regent
28-Jun-19,Culture & Environment Services,B & Q 1315,45.6,Miscellaneous Stock  - Purchases,"Ballast, brackets, springs - KETTLEBASTON - Landscape Team"
06-Jun-19,Culture & Environment Services,B & Q 1315,7.78,Materials and Supplies - Miscellaneous,BY PASS PRUN
28-Jun-19,Culture & Environment Services,B & Q 1315,29.01,Miscellaneous Stock  - Purchases,Cement - KETTLEBASTON - Landscape Team
21-Jun-19,Culture & Environment Services,B & Q 1315,5.56,Materials and Supplies - Miscellaneous,STOOLGRY
14-Jun-19,Culture & Environment Services,B & Q 1315,59.72,Equipment / Furniture / Materials,Tools for plant and equipment and shelf for teacher phones
11-Jun-19,Culture & Environment Services,B & Q 1315,18.07,Materials and Supplies - Miscellaneous,Two hand held sprayers - Christchurch Hub
20-Jun-19,Culture & Environment Services,B & Q 1315,46.67,Equipment / Furniture / Materials,Wood for athletics. Cables ties.
05-Jun-19,Culture & Environment Services,B&m Retail,10,Equipment / Furniture / Materials,x2 various size storage plastic containers for xtreme active
10-Jun-19,Culture & Environment Services,B&m Retail Ltd,14.15,Miscellaneous Stock  - Purchases,Storage boxes for various screws etc - Landscape Team
13-Jun-19,Culture & Environment Services,B&q Direct,41.92,Equipment / Furniture / Materials,Chains and padlocks for field.
25-Jun-19,Culture & Environment Services,B&q Direct,13.72,Equipment / Furniture / Materials,rechargeable batteries.
07-Jun-19,Culture & Environment Services,Bag Agg Ltd,42.5,Miscellaneous Stock  - Purchases,Ballast - MILLENNIUM CEM - Landscape Team
07-Jun-19,Culture & Environment Services,Bag Agg Ltd,42.5,Miscellaneous Stock  - Purchases,Ballast - MILLENNIUM CEMS - Landscape Team
07-Jun-19,Culture & Environment Services,Bag Agg Ltd,67.5,Miscellaneous Stock  - Purchases,Ballast - MILLENNIUM CEMS - Landscape Team
03-Jun-19,Culture & Environment Services,Bag Agg Ltd,36,Miscellaneous Stock  - Purchases,Ballast for concreting at Lowestoft
04-Jun-19,Culture & Environment Services,Bag Agg Ltd,30.9,Miscellaneous Stock  - Purchases,Cement - NORTHGATE SPORTS CENTRE - Landscape Team
05-Jun-19,Culture & Environment Services,Bag Agg Ltd,31.9,Miscellaneous Stock  - Purchases,Cement - NORTHGATE SPORTS CENTRE - Landscape Team
05-Jun-19,Culture & Environment Services,Bag Agg Ltd,41.25,Miscellaneous Stock  - Purchases,Cement - NORTHGATE SPORTS CENTRE - Landscape Team
06-Jun-19,Culture & Environment Services,Bag Agg Ltd,29.25,Miscellaneous Stock  - Purchases,Sand & Cement - NORTHGATE SPORTS CENTRE - Landscape Team
20-Jun-19,Culture & Environment Services,Bag Agg Ltd,28.8,Miscellaneous Stock  - Purchases,Sandpaper - ROYAL GREEN LOWESTOFT - Landscape Team
25-Jun-19,Culture & Environment Services,Bag Agg Ltd,24,Miscellaneous Stock  - Purchases,Sharp Sand - NORTHGATE -Landscape Team
19-Jun-19,Culture & Environment Services,Barnard Brothers,16.67,Materials and Supplies - Miscellaneous,Straw loose Blade x 5
26-Jun-19,Culture & Environment Services,Bolton Stores,6.65,Equipment / Furniture / Materials,Batteries for laser level
20-Jun-19,Culture & Environment Services,Booker Limited Ipswich,98.42,Catering/Beverages,"Mints, cordial, hot choc for conferences, drinks for bars"
24-Jun-19,Culture & Environment Services,Booker Limited Ipswich,47.8,Equipment / Furniture / Materials,Water for staff - Park Patrol
12-Jun-19,Culture & Environment Services,Boots 1833,8.32,Equipment / Furniture / Materials,memory adapter
12-Jun-19,Culture & Environment Services,Briscoe Lane Service S,22.2,Miscellaneous Expenses,Fuel hire car
27-Jun-19,Culture & Environment Services,Buildbase - Ipswich,28.06,Development & Maintenance of Natural Areas,Purchase of wooden rails for fence repairs
19-Jun-19,Culture & Environment Services,Buildbase - Ipswich,160.62,Development & Maintenance of Natural Areas,Timber and Post Rails
07-Jun-19,Culture & Environment Services,Bunzl,15.7,Cleaning Supplies,Alexandra park Tork SmartOne- dispencer + SmartOne- Tissue
13-Jun-19,Culture & Environment Services,Bunzl,29.78,Cleaning Supplies,CLEANING SUPPLIES
13-Jun-19,Culture & Environment Services,Bunzl,250.18,Cleaning Supplies,Cleaning supplies
13-Jun-19,Culture & Environment Services,Bunzl,10.87,Cleaning Supplies,Toilet Cleaner Old Foundry Road
06-Jun-19,Culture & Environment Services,Central Co-Op Reta,3.5,Miscellaneous Stock  - Purchases,Water for staff - ROYAL GREEN LOWESTOFT - Landscape Team
06-Jun-19,Culture & Environment Services,Collier&catchpole,46,Equipment / Furniture / Materials,Breeze Blocks - Bricked Grave
07-Jun-19,Culture & Environment Services,Collier&catchpole,135,Miscellaneous Stock  - Purchases,Mesh Steel Fabric - MILLENNIUM CEM - Landscape Team
27-Jun-19,Culture & Environment Services,Collier&catchpole,206.31,Miscellaneous Stock  - Purchases,Pallet of Cement - JUBILEE PARK PLAY AREA - Landscape Team
12-Jun-19,Culture & Environment Services,Collier&catchpole,204.4,Miscellaneous Stock  - Purchases,Pallet of cement - Landscape Team
04-Jun-19,Culture & Environment Services,Collier&catchpole,180,Miscellaneous Stock  - Purchases,Slabs - NORTHGATE SPORTS CENTRE - Landscape Team
28-Jun-19,Culture & Environment Services,Cpw Locksmiths And Securi,36,Equipment / Furniture / Materials,2 sets of waterfront keys matt lubbe now Supv and lost ones
19-Jun-19,Culture & Environment Services,Cpw Locksmiths And Securi,34.62,Equipment / Furniture / Materials,Keys and 2 door bolt keys
21-Jun-19,Culture & Environment Services,Crazy Horses Ltd,179.95,Equipment / Furniture / Materials,Green Bags For Ashes Collections By Family
06-Jun-19,Culture & Environment Services,Dart-Charge,5,Materials and Supplies - Miscellaneous,Dart Charge - Christchurch Hub
25-Jun-19,Culture & Environment Services,Diperk,5824.4,Direct Transport Costs,Sweeper repair for Cleansing Team
13-Jun-19,Culture & Environment Services,Dunelm Ltd,16.67,Equipment / Furniture / Materials,Crown Pools front window display
07-Jun-19,Culture & Environment Services,Dustbag Ltd,6.65,Equipment / Furniture / Materials,reusuable hoover bag
21-Jun-19,Culture & Environment Services,Dvla Vehicle Tax,262.5,Direct Transport Costs,Vehicle tax
18-Jun-19,Culture & Environment Services,Dvla Vehicle Tax,262.5,Parks Vehicle Costs,Vehicle Tax AR07 KKW
27-Jun-19,Culture & Environment Services,Dvla Vehicle Tax,262.5,Direct Transport Costs,vehicle tax for AV10 XJN
26-Jun-19,Culture & Environment Services,Dvla Vehicle Tax,262.5,Direct Transport Costs,vehicle tax for av11ztm
25-Jun-19,Culture & Environment Services,Dvla Vehicle Tax,262.5,Direct Transport Costs,vehicle tax for AV13 OOJ
27-Jun-19,Culture & Environment Services,Eastern Hose & Hydraul,109.2,Transport - Repairs,Hose repair
25-Jun-19,Culture & Environment Services,Eastern Hose & Hydraul,21.08,Direct Transport Costs,Split jet washer pipe
28-Jun-19,Culture & Environment Services,Eoe Co-Op,2,Miscellaneous Stock  - Purchases,Water for staff - JUBILEE PARK PLAY AREA - Landscape Team
20-Jun-19,Culture & Environment Services,Etsy.Com - Thecocktailgod,115.62,Materials and Supplies - Miscellaneous,barrel for holywells stable
28-Jun-19,Culture & Environment Services,Etsy.Com - Thecocktailgod,55.77,Materials and Supplies - Miscellaneous,Extra Delivery charge for stable room replacement barrel
19-Jun-19,Culture & Environment Services,Fitkituk.Com,35.12,Equipment / Furniture / Materials,New 1kg & 1.5kg hand weights for exercise classes
03-Jun-19,Culture & Environment Services,Floorstock,58.36,Cleaning Supplies,floor cleaner for Town Hall and Corn Excange
27-Jun-19,Culture & Environment Services,Global Foodservice Equ,31.35,Equipment / Furniture / Materials,Cordial Bottles for conferences
07-Jun-19,Culture & Environment Services,Google *play,31.19,Miscellaneous Stock  - Purchases,Spon's Landscape Contract Handbook for Framework set up
17-Jun-19,Culture & Environment Services,Halfords 0393,28.33,Materials and Supplies - Miscellaneous,Hal MicroUSB char x3 Halfords twin USB x2
27-Jun-19,Culture & Environment Services,Harbro Supplies Ltd,150.06,Equipment / Furniture / Materials,"Stonemasons Supplies - Paint, Discs Etc"
17-Jun-19,Culture & Environment Services,Hg Gladwell & Sons,22.65,Materials and Supplies - Miscellaneous,duck food Holywells park
12-Jun-19,Culture & Environment Services,Hg Gladwell & Sons,56.62,Materials and Supplies - Miscellaneous,x5 sacks of Duck food - Christchurch Hub
06-Jun-19,Culture & Environment Services,Hie Manchester East,45.99,Training Expenses,Training seminar Planning & Collaboration
14-Jun-19,Culture & Environment Services,Horticultural Sppls Ltd,36.67,Materials and Supplies - Miscellaneous,Growmore - Holywells Hub
10-Jun-19,Culture & Environment Services,Ipserv,4.58,Training Expenses,parking for conference
03-Jun-19,Culture & Environment Services,Joseph Conrad,15.79,Miscellaneous Stock  - Purchases,Evening whilst staying overnight at Lowestoft
06-Jun-19,Culture & Environment Services,Kings,17.5,Materials and Supplies - Miscellaneous,3x Cylinder key1x Mortice Key
06-Jun-19,Culture & Environment Services,Kings,13.75,Materials and Supplies - Miscellaneous,Cylinder key x3
27-Jun-19,Culture & Environment Services,Kings,10,Materials and Supplies - Miscellaneous,Keys cut - Holywells Hub
19-Jun-19,Culture & Environment Services,Leisureteq,781.7,Equipment / Furniture / Materials,pool maintenance parts
11-Jun-19,Culture & Environment Services,Lockshopwar,60.5,Materials and Supplies - Miscellaneous,x10 new padlocks for gates around centre outside
19-Jun-19,Culture & Environment Services,Lumberjacks,26.32,Materials and Supplies - Miscellaneous,50x50 pegs x25. 500g nails
25-Jun-19,Culture & Environment Services,Lumberjacks,21.85,Materials and Supplies - Miscellaneous,posts and wood to build h frame for tree
28-Jun-19,Culture & Environment Services,Machine Mart Ltd,26.3,Equipment / Furniture / Materials,Floor scrapers
18-Jun-19,Culture & Environment Services,Machine Mart Ltd,16.98,Miscellaneous Stock  - Purchases,Grinder disc/drill bits - KETTLEBASTON - Landscape Team
28-Jun-19,Culture & Environment Services,Map Uk,16.3,Materials and Supplies - Miscellaneous,Replacement Lock for London Road allotments
20-Jun-19,Culture & Environment Services,Martlesham Body Repair,378.24,Direct Transport Costs,Vehicle repairs to TP vehicle F6336
14-Jun-19,Culture & Environment Services,Mde Electrical Supplie,19.92,Equipment / Furniture / Materials,basic tools and pack of batteries
11-Jun-19,Culture & Environment Services,Nelson Potter (Dodnash,21.46,Materials and Supplies - Miscellaneous,replacements posts for grass to stop cars
19-Jun-19,Culture & Environment Services,Paypal,132.3,Clothing / Uniform & Laundry,Hi Vis vent out T. Shirt
03-Jun-19,Culture & Environment Services,Post Office Counter,10.65,Stationery,Oil samples for transport team
14-Jun-19,Culture & Environment Services,Poundland Ltd 1344,2.5,Equipment / Furniture / Materials,Christmas parties
14-Jun-19,Culture & Environment Services,Poundland Ltd 1344,7.5,Equipment / Furniture / Materials,Crown Pools front window display
12-Jun-19,Culture & Environment Services,Poundland Ltd 1344,0.83,Catering/Beverages,Milk for 50+
06-Jun-19,Culture & Environment Services,Premier Farnell,-49,Equipment / Furniture / Materials,credit for light bulbs
17-Jun-19,Culture & Environment Services,Proserve,252.5,Direct Transport Costs,Fine paid for employee. Employee to pay back in instalments
21-Jun-19,Culture & Environment Services,Pubshop Catalogue,16.95,Equipment / Furniture / Materials,Tongs for mints
10-Jun-19,Culture & Environment Services,Qd Stores,4.14,Equipment / Furniture / Materials,Crown Pools front windo display
13-Jun-19,Culture & Environment Services,Ram-Mount.Co.Uk,58.27,Direct Transport Costs,2x tablet mounts
24-Jun-19,Culture & Environment Services,Relcross Keylex,154,Materials and Supplies - Miscellaneous,Urinal Cartridges - Christchurch Hub
14-Jun-19,Culture & Environment Services,Ridgeons,18.02,Miscellaneous Stock  - Purchases,Cement - ROYAL GREEN LOWESTOFT - Landscape Team
13-Jun-19,Culture & Environment Services,Ridgeons,44.7,Miscellaneous Stock  - Purchases,Postfix - ROYAL GREEN LOWESTOFT - Landscape Team
19-Jun-19,Culture & Environment Services,Ridgeons,16.58,Miscellaneous Stock  - Purchases,Tarmac - KETTLEBASTON - Landscape Team
24-Jun-19,Culture & Environment Services,Ridgeons,7.64,Miscellaneous Stock  - Purchases,Timber - KETTLEBASTON - Landscape Team
10-Jun-19,Culture & Environment Services,Ridgeons,20.62,Miscellaneous Stock  - Purchases,Timber - ROYAL GREEN LOWESTOFT - Landscape Team
12-Jun-19,Culture & Environment Services,Ryman,17.83,Stationery,Laminating pouches
19-Jun-19,Culture & Environment Services,Ryman,14.99,Equipment / Furniture / Materials,One Flip Chart Pad For Plan tcourse in June 19
07-Jun-19,Culture & Environment Services,Sainsburys S/mkt,3.33,Cleaning Supplies,cleaning materials for shopmo
04-Jun-19,Culture & Environment Services,Sainsburys S/mkt,2.71,Stationery,pack of paper
07-Jun-19,Culture & Environment Services,Sainsburys S/mkt,5.25,Subsistence & Conference/Seminar / Event Expenses,"tea, sugar and milk for shopmo"
13-Jun-19,Culture & Environment Services,Sainsburys S/mkts,2.25,Materials and Supplies - Miscellaneous,Coffee/sugar - Education Room - Christchurch Hub
14-Jun-19,Culture & Environment Services,Sainsburys S/mkts,5.8,Catering/Beverages,Lemons
19-Jun-19,Culture & Environment Services,Sainsburys S/mkts,26.2,Equipment / Furniture / Materials,Plant Course Kettle Jug Tea Coffee as always used Fentons
26-Jun-19,Culture & Environment Services,Scissors And Needles,41.67,Equipment / Furniture / Materials,Repair and replacement of balcony seat cover.
26-Jun-19,Culture & Environment Services,Scissors And Needles,12.5,Equipment / Furniture / Materials,Repair of Town Hall flags
28-Jun-19,Culture & Environment Services,Screwfix Dir. Ltd,4.49,Equipment / Furniture / Materials,Fanlight pole
19-Jun-19,Culture & Environment Services,Screwfix Dir. Ltd,9.99,Miscellaneous Stock  - Purchases,Rawplugs - KETTLEBASTON - Landscape Team
18-Jun-19,Culture & Environment Services,Screwfix Dir. Ltd,51.62,Miscellaneous Stock  - Purchases,"Rawplugs, Resin, Handsaw - KETTLEBASTON - Landscape Team"
03-Jun-19,Culture & Environment Services,Screwfix Direct,30.82,Materials and Supplies - Miscellaneous,Measuring wheel for Bourne
07-Jun-19,Culture & Environment Services,Screwfix Direct,15.82,Equipment / Furniture / Materials,Purchase of wire cutters for general use.
04-Jun-19,Culture & Environment Services,Screwfix Direct,79.11,Equipment / Furniture / Materials,Safety boots SR and 6 pairs safety gloves
10-Jun-19,Culture & Environment Services,Screwfix Direct,26.64,Equipment / Furniture / Materials,Small tools events
10-Jun-19,Culture & Environment Services,Screwfix Direct,14.34,Equipment / Furniture / Materials,Small tools events
07-Jun-19,Culture & Environment Services,Screwfix Direct Lt,42.48,Materials and Supplies - Miscellaneous,Arrow Havy Duty Staples DeWalt Tracker
21-Jun-19,Culture & Environment Services,Screwfix Lowestoft,5.82,Miscellaneous Stock  - Purchases,Clamps - ROYAL GREEN LOWESTOFT - Landscape Team
21-Jun-19,Culture & Environment Services,Screwfix Lowestoft,3.49,Miscellaneous Stock  - Purchases,Sandpaper - ROYAL GREEN LOWESTOFT - Landscape Team
04-Jun-19,Culture & Environment Services,Seton,111.78,Miscellaneous Stock  - Purchases,H&S signage for Jubilee Park
04-Jun-19,Culture & Environment Services,Seton,210.7,Miscellaneous Stock  - Purchases,H&S signage for Jubilee Park
10-Jun-19,Culture & Environment Services,Shell Ranelagh 390,72.14,Parks Vehicle Costs,Fuel - Christchurch Hub
05-Jun-19,Culture & Environment Services,Silverton Aggregates,166.25,Miscellaneous Stock  - Purchases,Utility Slabs - NORTHGATE SPORTS CENTRE - Landscape Team
17-Jun-19,Culture & Environment Services,Sky High,190,Training Expenses,IPAF Training Course to operate Snorkel equipment
17-Jun-19,Culture & Environment Services,Sky High,190,Training Expenses,IPAF Training Course to operate Snorkel equipment
06-Jun-19,Culture & Environment Services,Sky High,285,Training/Courses Running Costs,IPAF Training for Technical Staff
06-Jun-19,Culture & Environment Services,Sky High,285,Training Expenses,IPAF Training for Technical Staff
14-Jun-19,Culture & Environment Services,Sliptech,115.85,Cleaning Supplies,Tile floor deep cleaning product.
04-Jun-19,Culture & Environment Services,Sq *ley Plant Limited,47,Miscellaneous Stock  - Purchases,Ballast - ROYAL GREEN LOWESTOFT - Landscape Team
05-Jun-19,Culture & Environment Services,Sq *ley Plant Limited,125,Miscellaneous Stock  - Purchases,Ballast - ROYAL GREEN LOWESTOFT - Landscape Team
10-Jun-19,Culture & Environment Services,Sq *ley Plant Limited,64,Miscellaneous Stock  - Purchases,Ballast - ROYAL GREEN LOWESTOFT - Landscape Team
12-Jun-19,Culture & Environment Services,Sq *ley Plant Limited,63,Miscellaneous Stock  - Purchases,Ballast - ROYAL GREEN LOWESTOFT - Landscape Team
13-Jun-19,Culture & Environment Services,Sq *ley Plant Limited,30,Miscellaneous Stock  - Purchases,Ballast - ROYAL GREEN LOWESTOFT - Landscape Team
06-Jun-19,Culture & Environment Services,Sq *ley Plant Limited,360,Miscellaneous Stock  - Purchases,Muck Away - ROYAL GREEN LOWESTOFT - Landscape Team
14-Jun-19,Culture & Environment Services,Suffolk County Council,41.67,Non Contracted_Professional Services,Road Closure for Global Rhythm on the Cornhill 2019
25-Jun-19,Culture & Environment Services,Suffolk County Council,25,Non Contracted_Professional Services,Skip licence for wastesaver team
13-Jun-19,Culture & Environment Services,Suffolk County Council,20.83,Non Contracted_Professional Services,skip permit
26-Jun-19,Culture & Environment Services,Suffolk Fastener (Ipsw,5,Equipment / Furniture / Materials,Socket buttons - Play Area Inspector
03-Jun-19,Culture & Environment Services,Surf & Turf Instant Sh,299.96,Premises Costs - Miscellaneous,Ground bars and clamps for the market
13-Jun-19,Culture & Environment Services,Tesco Store 2748,124.39,Catering/Beverages,Food for conference 51107
21-Jun-19,Culture & Environment Services,Tesco Store 3240,73.41,Catering/Beverages,Food for Conference 51116 lights and fluid for kitchens
21-Jun-19,Culture & Environment Services,Tesco Store 3240,10.53,Catering/Beverages,Food for Conference 51116 lights and fluid for kitchens
18-Jun-19,Culture & Environment Services,Tesco Store 3240,135.9,Catering/Beverages,Food for conference 51123
05-Jun-19,Culture & Environment Services,Tesco Store 3240,45.82,Catering/Beverages,food for conference 51132
25-Jun-19,Culture & Environment Services,Tesco Store 3240,4.17,Catering/Beverages,"Gin for Bars, Lemons and sink unblocker"
25-Jun-19,Culture & Environment Services,Tesco Store 3240,72,Catering/Beverages,"Gin for Bars, Lemons and sink unblocker"
25-Jun-19,Culture & Environment Services,Tesco Store 3240,4.17,Cleaning Supplies,"Gin for Bars, Lemons and sink unblocker"
07-Jun-19,Culture & Environment Services,Tfl Road Chg - Std Web,9.58,Materials and Supplies - Miscellaneous,Congestion Charge - Christchurch Hub
31-May-19,Culture & Environment Services,The Range,0.97,Cleaning Supplies,Cleaning products for HEARS alarms
13-Jun-19,Culture & Environment Services,The Range,4.99,Equipment / Furniture / Materials,Crown Pools front window display
25-Jun-19,Culture & Environment Services,The Range,2.49,Equipment / Furniture / Materials,White Board Marker Pens for courses
19-Jun-19,Culture & Environment Services,Timpson,30.83,Materials and Supplies - Miscellaneous,Keys cut - Park Patrol
24-Jun-19,Culture & Environment Services,Timpson,10,Miscellaneous Stock  - Purchases,Keys cut for soap dispenser - Christchurch Hub
20-Jun-19,Culture & Environment Services,Toolstation Ltd,75.33,Miscellaneous Stock  - Purchases,Spray paint & various tools - Christchurch Park
17-Jun-19,Culture & Environment Services,Toolstation Ltd,7.46,Equipment / Furniture / Materials,Tie down straps for round 16
25-Jun-19,Culture & Environment Services,Toolstation Ltd,69.46,Miscellaneous Stock  - Purchases,Various tools - Landscape Team
13-Jun-19,Culture & Environment Services,Town & Tea,57.87,Catering/Beverages,Meeting Sundries
28-Jun-19,Culture & Environment Services,Tp Ipswich,175.2,Equipment / Furniture / Materials,Sand for Golden Mile
12-Jun-19,Culture & Environment Services,Trainline,89.4,Use Of Public Transport,AL Elections Training
20-Jun-19,Culture & Environment Services,Trainline,67.4,Capital Expenditure,payment to babergh council
10-Jun-19,Culture & Environment Services,Trainline,39.5,Use Of Public Transport,ZB Elections - Training London
25-Jun-19,Culture & Environment Services,Turner Tool Hire,549.62,Equipment Hire,MEWP Hire Tracked Platform (210668)
04-Jun-19,Culture & Environment Services,Tvlicensing.Co.Uk,154.5,Licences & Other Fees,tv licensing for the year
18-Jun-19,Culture & Environment Services,Victoria Nurseries,37.47,Miscellaneous Stock  - Purchases,Growmore - Christchurch Hub
12-Jun-19,Culture & Environment Services,W M Morrison Petro,7.5,Direct Transport Costs,Oil for vehicle - Landscape Team
18-Jun-19,Culture & Environment Services,Waitrose Ltd,4.19,Catering/Beverages,Food for Goletees solicitors 51123
28-Jun-19,Culture & Environment Services,Waitrose Ltd,3.78,Catering/Beverages,Lemons for Bars
04-Jun-19,Culture & Environment Services,Waitrose Ltd,1.15,Catering/Beverages,Milk for Conferences
26-Jun-19,Culture & Environment Services,Waitrose Ltd,4.6,Catering/Beverages,Milks for conferences
19-Jun-19,Culture & Environment Services,Wickes Ipswich,16.75,Materials and Supplies - Miscellaneous,BLUE Circle general purpose cement 25kg x 5
07-Jun-19,Culture & Environment Services,Wickes Ipswich,14.58,Equipment / Furniture / Materials,Breeze Blocks - Bricked Grave
27-Jun-19,Culture & Environment Services,Wickes Ipswich,18.74,Miscellaneous Stock  - Purchases,Duck Tape & rubber mallet - Landscape Team
27-Jun-19,Culture & Environment Services,Wickes Ipswich,3.29,Equipment / Furniture / Materials,general purpose mortar - Play Area Inspector
05-Jun-19,Culture & Environment Services,Wickes Ipswich,5,Materials and Supplies - Miscellaneous,Gorilla Tape
25-Jun-19,Culture & Environment Services,Wickes Ipswich,16.67,Materials and Supplies - Miscellaneous,Tape Measures - Holywells Hub
18-Jun-19,Culture & Environment Services,Wickes Ipswich,96,Materials and Supplies - Miscellaneous,tools for jubilee project
03-Jun-19,Culture & Environment Services,Wickes Lowestoft,51.75,Miscellaneous Stock  - Purchases,Ballast - ROYAL GREEN LOWESTOFT - Landscape Team
06-Jun-19,Culture & Environment Services,Wilko Retail Limit,4.17,Equipment / Furniture / Materials,Gorilla glue for seat numbers
28-Jun-19,Culture & Environment Services,Wilko Retail Limit,9.17,Cleaning Supplies,hand towels and command hooks for shopmobility
13-Jun-19,Culture & Environment Services,Wilko Retail Limit,9.08,Materials and Supplies - Miscellaneous,Handwash & Dishwash tabs - Christchurch Hub
25-Jun-19,Culture & Environment Services,Wilko Retail Limit,16.67,Equipment / Furniture / Materials,"Trays for security checks, storage boxes"
21-Jun-19,Culture & Environment Services,Wm Morrisons Store,3.12,Miscellaneous Stock  - Purchases,Water for Staff - KETTLEBASTON - Landscape Team
07-Jun-19,Culture & Environment Services,Wp-Peoples Trust,80,Training Expenses,2 volunteer places at national dormouse conference
25-Jun-19,Culture & Environment Services,"Www,mechlite.Co.Uk",59.45,Fixtures & Fittings,Door lock for office door.
18-Jun-19,Culture & Environment Services,Www.Banneruk.Com,23.64,Stationery,stationary
06-Jun-19,Culture & Environment Services,Www.Banneruk.Com,28.98,Stationery,Stationary for Regent Theatre
19-Jun-19,Culture & Environment Services,Www.Banneruk.Com,80.48,Stationery,stationery order
20-Jun-19,Culture & Environment Services,Www.Banneruk.Com,25.9,Stationery,Stationery order
19-Jun-19,Culture & Environment Services,Www.British-Gymnastics,138.36,Goods for Resale - Equipment,Gymnastic Certificates & Badges
26-Jun-19,Culture & Environment Services,Www.British-Gymnastics,17.39,Goods for Resale - Equipment,Gymnastic Certificates and Badges
28-Jun-19,Culture & Environment Services,Www.Caterkwik.Co.Uk,499.99,Equipment / Furniture / Materials,Replacement Ice Cream Freezer
13-Jun-19,Culture & Environment Services,Www.Chainsdirect.Co.Uk,222.67,Materials and Supplies - Miscellaneous,Chain Saw chains
17-Jun-19,Culture & Environment Services,Www.Cleanroomsuppliesltd,292.08,Cleaning Supplies,"blue shoe covers - 12,000"
13-Jun-19,Culture & Environment Services,Www.Cookswastekare,218,Miscellaneous Stock  - Purchases,Hire of a skip - JUBILEE PARK PLAY AREA - Landscape Team
03-Jun-19,Culture & Environment Services,Www.Cookswastekare,218,Miscellaneous Stock  - Purchases,Jubilee Park surfacing removal
18-Jun-19,Culture & Environment Services,Www.Cookswastekare,325.44,Miscellaneous Stock  - Purchases,Removal of Rubber - JUBILEE PARK PLAY AREA
18-Jun-19,Culture & Environment Services,Www.Cookswastekare,218,Miscellaneous Stock  - Purchases,Replacement skip - JUBILEE PARK PLAY AREA
26-Jun-19,Culture & Environment Services,Www.Cookswastekare,441.52,Miscellaneous Stock  - Purchases,Rubber removal - JUBILEE PARK - Landscape Team
26-Jun-19,Culture & Environment Services,Www.Cookswastekare,441.53,Miscellaneous Stock  - Purchases,Rubber removal - JUBILEE PARK - Landscape Team
11-Jun-19,Culture & Environment Services,Www.Cookswastekare,379.68,Miscellaneous Stock  - Purchases,Skip Hire - JUBILEE PARK PLAY AREA
14-Jun-19,Culture & Environment Services,Www.Cookswastekare,436,Miscellaneous Stock  - Purchases,Skip Hire - JUBILEE PARK PLAY AREA - Landscape Team
07-Jun-19,Culture & Environment Services,Www.Dvla.Gov.Uk,262.5,Direct Transport Costs,Vehicle Tax for AP06SNX
07-Jun-19,Culture & Environment Services,Www.Dvla.Gov.Uk,1330.5,Direct Transport Costs,Vehicle tax for AV13OPL
07-Jun-19,Culture & Environment Services,Www.Dvla.Gov.Uk,1330.5,Direct Transport Costs,vehicle tax for AV13OPM
07-Jun-19,Culture & Environment Services,Www.Dvla.Gov.Uk,1330.5,Direct Transport Costs,Vehicle Tax for AV13OPO
07-Jun-19,Culture & Environment Services,Www.Dvla.Gov.Uk,1330.5,Direct Transport Costs,Vehicle Tax for AV13OPR
07-Jun-19,Culture & Environment Services,Www.Dvla.Gov.Uk,1330.5,Direct Transport Costs,Vehicle tax for AV13OPS
07-Jun-19,Culture & Environment Services,Www.Dvla.Gov.Uk,1330.5,Direct Transport Costs,Vehicle Tax for AV13OPT
07-Jun-19,Culture & Environment Services,Www.Dvla.Gov.Uk,722.5,Direct Transport Costs,Vehicle tax for AV13OPU
07-Jun-19,Culture & Environment Services,Www.Dvla.Gov.Uk,262.5,Parks Vehicle Costs,Vehicle Tax for AX14CWN
07-Jun-19,Culture & Environment Services,Www.Dvla.Gov.Uk,167.5,Direct Transport Costs,Vehicle Tax for AY12DXU
07-Jun-19,Culture & Environment Services,Www.Dvla.Gov.Uk,1330.5,Direct Transport Costs,Vehicle tax for AY13AVN
21-Jun-19,Culture & Environment Services,Www.Excalibur-Hygeine.,157.65,Fixtures & Fittings,Purchase of Toilet Roll Holders for auditorium toilets
18-Jun-19,Culture & Environment Services,Www.Gopak.Co.Uk,460.13,Equipment / Furniture / Materials,Tables for courses and parties
05-Jun-19,Culture & Environment Services,Www.Gov.Uk,10,Goods for Resale - Bereavement,Will Request-wills.gov.uk-Grave Transfer for Elderly Client
21-Jun-19,Culture & Environment Services,Www.Heatoncatering,29.65,Materials and Supplies - Miscellaneous,Measurers
20-Jun-19,Culture & Environment Services,Www.Ipswichpa.Co.Uk,181.67,Equipment / Furniture / Materials,Head mic system for main hall.
07-Jun-19,Culture & Environment Services,Www.Lifesaversdirect,107.22,Training/Courses Running Costs,Choking Rescue Trainer Vest
07-Jun-19,Culture & Environment Services,Www.Lifesaversdirect,182.84,Training/Courses Running Costs,Choking Rescue Trainer Vest
27-Jun-19,Culture & Environment Services,Www.Lifesaversdirect,225.25,Training/Courses Running Costs,FAW New Candidate Pack & Manikin Wipes 200
07-Jun-19,Culture & Environment Services,Www.Paragon.Net.Uk Rt,5.99,Miscellaneous Expenses,web domain renewal
07-Jun-19,Culture & Environment Services,Www.Paragon.Net.Uk Rt,70.8,Miscellaneous Expenses,website hosting
20-Jun-19,Culture & Environment Services,Www.Planningportal.Co.,136,Capital Expenditure,payment to babergh
20-Jun-19,Culture & Environment Services,Www.Planningportal.Co.,136,Capital Expenditure,payment to Babergh council
04-Jun-19,Culture & Environment Services,Www.Thesoccerstore.Co.Uk,9.12,Equipment / Furniture / Materials,Plastic clips for nets on football goals (3G)
25-Jun-19,Development,Amznmktplace Amazon.Co.Uk,4.15,Direct Transport Costs,permit holders for new electric cars
05-Jun-19,Development,Amznmktplace Amazon.Co.Uk,17.47,Computer Consumables and other Minor IT costs,vga cables
14-Jun-19,Development,Geodesys,81.61,Capital Expenditure,24 Swinburne rd
17-Jun-19,Development,Geodesys,89.83,Capital Expenditure,38b pickwick rd
13-Jun-19,Development,Government Events,322.15,Training Expenses,Planning For Prosperous Communities Conference (CH)
27-Jun-19,Development,Horizon Environment Sr,49.75,Premises Costs - Miscellaneous,pest control
20-Jun-19,Development,J P Chick & Partne,450,Non Contracted_Professional Services,Structural Report Coniston Square
26-Jun-19,Development,Landmark Information G,320,Non Contracted_Professional Services,survey St Peters Dock
26-Jun-19,Development,Mid Suffolk District C,192,Non Contracted_Professional Services,Partnership application 5 Paper Mill Lane
04-Jun-19,Development,Mid Suffolk District C,100,Non Contracted_Professional Services,Partnership Application Inspections 6 Peacock Close
13-Jun-19,Development,Nochex.*utilitysearch,100.17,Capital Expenditure,24 Swinburne rd
04-Jun-19,Development,Pitneybowesdirect.,135.05,Postage Costs,ink for franking m/c
18-Jun-19,Development,Post Office Counter,91.67,Training/Courses Running Costs,cctv badge
06-Jun-19,Development,Riba Services,128.6,Publications - Purchase,"JCT Contracts CA 2016, MH"
10-Jun-19,Development,Rics Subs UK Cybs,474,Employee Expenses,KR subs
03-Jun-19,Development,Sainsburys S/mkt,15.54,Subsistence & Conference/Seminar / Event Expenses,tea coffee etc
05-Jun-19,Development,Trainline,90.17,Training Expenses,Train ticket for Manchester Facilities Forum 
27-Jun-19,Development,Trainline.Com,46.02,Use Of Public Transport,KR to London
26-Jun-19,Development,Tvlicensing.Co.Uk,154.5,Licences & Other Fees,tv licence
04-Jun-19,Development,Www.Banneruk.Com,11.05,Stationery,Brass drawing pins (Enforcement)
24-Jun-19,Development,Www.Banneruk.Com,2.27,Stationery,Staples (Planning)
14-Jun-19,Development,Www.Banneruk.Com,16.8,Stationery,visitors book refills
13-Jun-19,Development,Www.Cskills.Org,30,Non Contracted_Professional Services,Cscs Card for Alice Tompkins
19-Jun-19,Development,Www.Latitudemaps.Co.Uk,30.25,Publications - Purchase,Latitude maps (Planning)
28-Jun-19,Development,Www.Sackers .Co.Uk,375,Removal/Emptying of Waste,bins
18-Jun-19,Finance & Revenues,Amazon.Co.Uk,20.75,Stationery,Foot rest 
12-Jun-19,Finance & Revenues,Amazon.Co.Uk,52.25,Telecommunication Costs - Business Phones,Skype handsets
26-Jun-19,Finance & Revenues,Amznmktplace,22.54,Computer Equipment - Purchase,2 x Plugable USB 2.0 to Ethernet Fast 10/100 LAN Wired adap
07-Jun-19,Finance & Revenues,Amznmktplace,9.4,Equipment / Furniture / Materials,Air duster for PC\Laptop cleaning
10-Jun-19,Finance & Revenues,Amznmktplace,26.3,Equipment / Furniture / Materials,Cleaning kit\ air duster for laptops
26-Jun-19,Finance & Revenues,Amznmktplace,12.81,Stationery,Mouse Mat and keyboard wrist rest
12-Jun-19,Finance & Revenues,Amznmktplace,8.9,Telecommunication Costs - Mobiles,Protective case for Smartphone
12-Jun-19,Finance & Revenues,Amznmktplace,8.9,Telecommunication Costs - Mobiles,Protective case for Smartphone
03-Jun-19,Finance & Revenues,Amznmktplace,8.9,Telecommunication Costs - Mobiles,Protective cases for Smartphones
14-Jun-19,Finance & Revenues,Amznmktplace,7.03,Telecommunication Costs - Mobiles,Protective cases for Smartphones
14-Jun-19,Finance & Revenues,Amznmktplace,7.02,Telecommunication Costs - Mobiles,Protective cases for Smartphones
20-Jun-19,Finance & Revenues,Amznmktplace,8.9,Telecommunication Costs - Mobiles,Protective cases for smartphones
27-Jun-19,Finance & Revenues,Amznmktplace,8.9,Telecommunication Costs - Mobiles,Protective cases for smartphones
20-Jun-19,Finance & Revenues,Amznmktplace,12.89,Telecommunication Costs - Business Phones,USB adaptors
07-Jun-19,Finance & Revenues,Amznmktplace,31.96,Equipment / Furniture / Materials,Wireless Mice
19-Jun-19,Finance & Revenues,Amznmktplace Amazon.Co.Uk,53.32,Stationery,2 x heavy duty carts 
17-Jun-19,Finance & Revenues,Amznmktplace Amazon.Co.Uk,7.03,Telecommunication Costs - Mobiles,Protective cases for smartphones
17-Jun-19,Finance & Revenues,Amznmktplace Amazon.Co.Uk,7.02,Telecommunication Costs - Mobiles,Protective cases for smartphones
25-Jun-19,Finance & Revenues,Cbt Nuggets,47.8,Training Expenses,ICT training site
24-Jun-19,Finance & Revenues,Ebuyer (UK) Ltd,105.82,Computer Equipment - Purchase,10 x Laptop sleeves
20-Jun-19,Finance & Revenues,Kenable,60.13,Computer Equipment - Purchase,Agile cables and HDMI to VGA adaptors
17-Jun-19,Finance & Revenues,Onedirect,1457.54,Computer Equipment - Purchase,O365 - headsets
18-Jun-19,Finance & Revenues,"Probrand Ltd.,",620.64,Computer Equipment - Purchase,"4 x 24"" Monitors for stock"
06-Jun-19,Finance & Revenues,Service Fees - Fraedom Pty Ltd,383.15,Computer Software - Maintenance,Fraedom Card Usage Fees 1/5/19 to 31/5/19
17-Jun-19,Finance & Revenues,Southend County,757,Legal Services & Fees,Council Tax and NDR summons
20-Jun-19,Finance & Revenues,Southend County,427.5,Legal Services & Fees,Council Tax and NDR summons
21-Jun-19,Finance & Revenues,Trainline,19.12,Use Of Public Transport,Rail Tickets 
04-Jun-19,Finance & Revenues,Www.Cimaglobal.Com,77,Employee Expenses,CIMA Student Membership
18-Jun-19,Finance & Revenues,Www.Uk.Insight.Com,212.8,Computer Equipment - Purchase,SSL certificate for Skype
12-Jun-19,Housing & Community Services,Aj Products UK Ltd,1500,Materials and Supplies - Miscellaneous,New racking for Old Protin Plant
11-Jun-19,Housing & Community Services,Aldi 776 104,7.45,Specific Campaigns / Projects expenditure,Crucial Crew items- more water
18-Jun-19,Housing & Community Services,Amazon.Co.Uk,19.17,Equipment / Furniture / Materials,Wireless mouse 
24-Jun-19,Housing & Community Services,Amznmktplace,116.62,Equipment / Furniture / Materials,"2x 18v Battery impact drivers DR235,DR236 "
21-Jun-19,Housing & Community Services,Amznmktplace,4.79,Equipment / Furniture / Materials,4 x clickers for noise officers
28-Jun-19,Housing & Community Services,Amznmktplace,67.96,Computer Equipment - Purchase,Keyboard & mouse sets x 4
26-Jun-19,Housing & Community Services,Amznmktplace,6.59,Telecommunication Costs - Mobiles,Mobile Phone Case
04-Jun-19,Housing & Community Services,Amznmktplace,8.88,Telecommunication Costs - Mobiles,Screen Protectors
10-Jun-19,Housing & Community Services,Amznmktplace,17.07,Computer Consumables and other Minor IT costs,USB conference microphone
28-Jun-19,Housing & Community Services,Amznmktplace,26.67,Computer Equipment - Purchase,USB Hub
28-Jun-19,Housing & Community Services,Amznmktplace,35.96,Computer Equipment - Purchase,Wireless mouse x 4
07-Jun-19,Housing & Community Services,Amznmktplace Amazon.Co.Uk,25.97,Computer Equipment - Purchase,Desktop Fans
19-Jun-19,Housing & Community Services,Amznmktplace Amazon.Co.Uk,24.99,Computer Equipment - Purchase,Monitor Stand
12-Jun-19,Housing & Community Services,Booker Limited Ipswich,32.9,Equipment / Furniture / Materials,Water 10 packs of 24 for tradesmen during Hot Weather
28-Jun-19,Housing & Community Services,Bunzl,147.19,Cleaning Supplies,"Toilet tissue, antibac wipes, blue roll, bin bags etc"
12-Jun-19,Housing & Community Services,Castlebroom Engineering,125,Materials and Supplies - Miscellaneous,10 new re bored stop cocks for old mains pipes for all plumb
19-Jun-19,Housing & Community Services,Certsure Llp,560.4,Non Contracted_Professional Services,Part P Scheme (Electrical)
18-Jun-19,Housing & Community Services,Cpw Locksmiths And Securi,80,HRA Special Repairs & Maintenance,194 Stratford Court
26-Jun-19,Housing & Community Services,Cpw Locksmiths And Securi,23.33,HRA Special Repairs & Maintenance,keys scheme
26-Jun-19,Housing & Community Services,Cpw Locksmiths And Securi,110,HRA Special Repairs & Maintenance,provide lock to scheme CT
04-Jun-19,Housing & Community Services,Easyjet,141.24,Employee Expenses,Stansted to Glasgow Flights
04-Jun-19,Housing & Community Services,Expedia 7440274372690,6,Employee Expenses,Stansted to Glasgow Flights
24-Jun-19,Housing & Community Services,Firstaid4less.Co.Uk,175.7,Miscellaneous Expenses,10 first aid boxes and cold packs for sheltered schemes
28-Jun-19,Housing & Community Services,Food Safety Direct,69.95,Equipment / Furniture / Materials,White coats/hats and probe wipes
24-Jun-19,Housing & Community Services,Gen Register Office,14,Services for Clients,For customer identity
28-Jun-19,Housing & Community Services,Liquidline,181.45,Materials and Supplies - Miscellaneous,Coffee and sugar
10-Jun-19,Housing & Community Services,Machine Mart Web,113.99,Fixtures & Fittings,Strimmer for West Villa
05-Jun-19,Housing & Community Services,National Express Limited,49,Employee Expenses,Coach Travel
05-Jun-19,Housing & Community Services,Possessionclaim.Go,325,Legal Services & Fees,possession claim on line
05-Jun-19,Housing & Community Services,Possessionclaim.Go,325,Legal Services & Fees,possession claim on line
05-Jun-19,Housing & Community Services,Possessionclaim.Go,325,Legal Services & Fees,possession claim on line
05-Jun-19,Housing & Community Services,Possessionclaim.Go,325,Legal Services & Fees,possession claim on line
10-Jun-19,Housing & Community Services,Possessionclaim.Go,325,Legal Services & Fees,possession claim on line
11-Jun-19,Housing & Community Services,Possessionclaim.Go,325,Legal Services & Fees,possession claim on line
11-Jun-19,Housing & Community Services,Possessionclaim.Go,325,Legal Services & Fees,possession claim on line
17-Jun-19,Housing & Community Services,Possessionclaim.Go,325,Legal Services & Fees,possession claim on line
19-Jun-19,Housing & Community Services,Possessionclaim.Go,121,Legal Services & Fees,warrant for possession
17-Jun-19,Housing & Community Services,Possessionclaim.Go,121,Legal Services & Fees,warrant of eviction
05-Jun-19,Housing & Community Services,Possessionclaim.Go,121,Legal Services & Fees,warrant of possession
05-Jun-19,Housing & Community Services,Possessionclaim.Go,121,Legal Services & Fees,warrant of possession
05-Jun-19,Housing & Community Services,Premier Inn44513065,160,Employee Expenses,Hotel Accommodation
27-Jun-19,Housing & Community Services,Sainsburys S/mkts,19.21,Housing  - other Costs,Refreshments for Area Housing Panels NW and SW
26-Jun-19,Housing & Community Services,Screwfix Direct,34.99,Equipment / Furniture / Materials,Sack barrow
26-Jun-19,Housing & Community Services,Screwfix Direct,29.16,Equipment / Furniture / Materials,Sack Barrow 
19-Jun-19,Housing & Community Services,Screwfix Direct Lt,29.16,Clothing / Uniform & Laundry,Size 3 Boots
10-Jun-19,Housing & Community Services,Southend County,226,Non Contracted_Professional Services,Hearing costs for magistrates court
19-Jun-19,Housing & Community Services,Stellison Ltd,74.17,Materials and Supplies - Miscellaneous,CDA Sink
10-Jun-19,Housing & Community Services,Toolstation Ltd,139,Fixtures & Fittings,"Lawn mower for East Villa, Sidegate Lane"
13-Jun-19,Housing & Community Services,Trainline,99.4,Training Expenses,Train Travel
07-Jun-19,Housing & Community Services,Trainline.Com,63.26,Use Of Public Transport,Housing Apprentice Train fare to London
21-Jun-19,Housing & Community Services,Trainline.Com,114.82,Employee Expenses,Train Travel
25-Jun-19,Housing & Community Services,Utility Debt Collectors,17.89,Miscellaneous Expenses,Utility bill for IBC property -company not on agresso
05-Jun-19,Housing & Community Services,Westgate Ward S/C,22.5,Housing  - other Costs,Westgate Ward Social Club room hire for Clean Up Day
17-Jun-19,Housing & Community Services,Wh Smith,20.94,Housing  - other Costs,Prizes for Children's artwork competition from Tenants Times
27-Jun-19,Housing & Community Services,Wilko Retail Limit,1.5,Housing  - other Costs,Cups for Area Housing Panels NW and SW
24-Jun-19,Housing & Community Services,Www.Argos.Co.Uk,36.62,Miscellaneous Expenses,storage box for Cumberland T as agreed by KB
06-Jun-19,Housing & Community Services,Www.Banneruk.Com,52.24,Stationery,Stationery
28-Jun-19,Housing & Community Services,Www.Safeoptions.Co.Uk,42.5,Materials and Supplies - Miscellaneous,New Lock Keys for Imprest stock lockers x 10
13-Jun-19,People & Governance,Amazon.Co.Uk,17,Miscellaneous Stock  - Purchases,Double sided sticky tape for the print room - pull up banner
28-Jun-19,People & Governance,Amznmktplace,41.46,Miscellaneous Stock  - Purchases,A1 Foam Boards for print room usage
28-Jun-19,People & Governance,Amznmktplace,114.67,Miscellaneous Stock  - Purchases,Pull Up Banner Cases for use within the print room
14-Jun-19,People & Governance,Amznmktplace Amazon.Co.Uk,7.41,Miscellaneous Stock  - Purchases,Sticky back hangers (Print Room)
17-Jun-19,People & Governance,Argos Retail Group,35.82,Advertising/Publicity,Portable Hard Drive
18-Jun-19,People & Governance,Arts Marketing Associa,308,Subscriptions - Service Related,Annual membership
11-Jun-19,People & Governance,Companies House,13,Legal Services & Fees,Confirmation statements
13-Jun-19,People & Governance,Craftability (Ipswich),7,Miscellaneous Functions & Events,gold envelopes for events (retirement voucher)
07-Jun-19,People & Governance,Facebk *kfftxls7j2,2.52,Advertising/Publicity,Social Media Advertising
07-Jun-19,People & Governance,Facebk *kfftxls7j2,4.55,Advertising/Publicity,Social Media Advertising
07-Jun-19,People & Governance,Facebk *kfftxls7j2,28.91,Advertising/Publicity,Social Media Advertising
06-Jun-19,People & Governance,Facebk *zbvcxla8j2,46.42,Advertising/Publicity,Social Media Advertising
06-Jun-19,People & Governance,Facebk *zbvcxla8j2,113.16,Advertising/Publicity,Social Media Advertising
06-Jun-19,People & Governance,Facebk *zbvcxla8j2,323.75,Advertising/Publicity,Social Media Advertising
10-Jun-19,People & Governance,Freelance Offset Services,379.86,Equipment - Repairs,Call out and Repair costs for the Riso Envelope Printer
21-Jun-19,People & Governance,Google,84.54,Advertising/Publicity,Open Air Cinema PPC campaign
18-Jun-19,People & Governance,Greater Anglia Trains,91.4,Use Of Public Transport,Train fare to IT Audit Conference in London
07-Jun-19,People & Governance,Halfords 0883,11.67,Miscellaneous Stock  - Purchases,Double sided sticky tape for pull up banners (Print Room)
27-Jun-19,People & Governance,Helloprint,163.51,Printing Costs,"25,000 A5 s/s Ipswich Fit Summer Holidays Flyer"
26-Jun-19,People & Governance,Helloprint,480.15,Printing Costs,Crown Car Park Large Mesh Banners x 15
19-Jun-19,People & Governance,Helloprint,341.89,Printing Costs,Ipswich Fit Summer Holidays A5 Booklets 
13-Jun-19,People & Governance,Mailchimp,447.37,Subscriptions - Service Related,Mailchimp
27-Jun-19,People & Governance,Mailchimp,198.8,Subscriptions - Service Related,Mailchimp
21-Jun-19,People & Governance,Makro Self Service Ipswic,211.04,Miscellaneous Functions & Events,pimms. napkins/paper table cloths MAH
26-Jun-19,People & Governance,Marks&spencer Plc,18.5,Miscellaneous Functions & Events,cake for Whitton School Allotment Club
13-Jun-19,People & Governance,Marks&spencer Plc,22.9,Miscellaneous Functions & Events,retirement - sandwiches and cake
18-Jun-19,People & Governance,Signs For You Ltd,63,Advertising/Publicity,Open Call Museum Mesh Banner
17-Jun-19,People & Governance,Sportsdirect 366,5,Miscellaneous Functions & Events,umbrellas for car and wet events
21-Jun-19,People & Governance,Spring Road,40.3,Direct Transport Costs,FUEL
17-Jun-19,People & Governance,"Sprout Social, Inc",736.75,Subscriptions - Service Related,Social Media Management
18-Jun-19,People & Governance,Stk*bigstockphoto.Com,59,Computer Consumables and other Minor IT costs,Stock Images
20-Jun-19,People & Governance,Tesco Store 2748,17.5,Computer Consumables and other Minor IT costs,Ink Cartridge 
06-Jun-19,People & Governance,Tesco Stores 5909,3.94,Stationery,batteries for projector remote
13-Jun-19,People & Governance,Waitrose Ltd,2.75,Miscellaneous Functions & Events,coffee for the parlour
12-Jun-19,People & Governance,Waitrose Ltd,6.84,Miscellaneous Functions & Events,Milk and cake for long service awards
06-Jun-19,People & Governance,Wedding Venue Director,75,Advertising/Publicity,Wedding venue directory for CCM
26-Jun-19,People & Governance,Wilko Retail Limit,3,Miscellaneous Functions & Events,polish for parlour
21-Jun-19,People & Governance,Www.Banneruk.Com,140,Computer Consumables and other Minor IT costs,"570PBK, 571CMYK x2 "
18-Jun-19,People & Governance,Www.Banneruk.Com,13.52,Miscellaneous Stock  - Purchases,A4 Laminate Pouches for the Print Room
11-Jun-19,People & Governance,Www.Banneruk.Com,40.02,Computer Consumables and other Minor IT costs,Ink Cartridge 
06-Jun-19,People & Governance,Www.Banneruk.Com,78.51,Computer Consumables and other Minor IT costs,Ink Cartridge 
06-Jun-19,People & Governance,Www.Banneruk.Com,63.47,Computer Consumables and other Minor IT costs,Ink Cartridge 
19-Jun-19,People & Governance,Www.Banneruk.Com,29.98,Computer Consumables and other Minor IT costs,IT Equipment
04-Jun-19,People & Governance,Www.Iwaste.Co.Uk,195,Equipment - Contract Maintenance,WEEE collection cost for the old Canon Plotter
25-Jun-19,People & Governance,Www.Paper.Co.Uk,181.87,Miscellaneous Stock  - Purchases,Paper stocks required for the print room
12-Jun-19,People & Governance,Www.Paper.Co.Uk,59.72,Miscellaneous Stock  - Purchases,Paper supply for the Print Room
12-Jun-19,People & Governance,Www.Paper.Co.Uk,127.02,Miscellaneous Stock  - Purchases,Paper Supply for the print room
17-Jun-19,People & Governance,Www.Paper.Co.Uk,387.77,Miscellaneous Stock  - Purchases,Paper Supply for the Print Room
